[Event "Early-Titled-Tuesday-Blitz-July-09-2024"]
[Site "Chess.com"]
[Date "2024.07.09"]
[Round "10"]
[White "Gyulamiryan-koryun"]
[Black "DanylaBagrov"]
[Result "0-1"]
[WhiteElo "1918"]
[BlackElo "2599"]
[TimeControl "180+1"]
[EndTime "9:57:08 PDT"]
[Termination "DanylaBagrov won by resignation"]

1. d4 {[%clk 0:03:00.9]} 1... d6 {[%clk 0:02:59.6]} 2. c4 {[%clk 0:02:59.4]}
2... e5 {[%clk 0:02:59.1]} 3. Nc3 {[%clk 0:02:56.7]} 3... exd4 {[%clk
0:02:54.9]} 4. Qxd4 {[%clk 0:02:56]} 4... Nc6 {[%clk 0:02:55]} 5. Qd1 {[%clk
0:02:53.2]} 5... Be6 {[%clk 0:02:53.4]} 6. e4 {[%clk 0:02:52.3]} 6... a5 {[%clk
0:02:49]} 7. Nf3 {[%clk 0:02:52.1]} 7... g6 {[%clk 0:02:45.5]} 8. h3 {[%clk
0:02:51.7]} 8... Bg7 {[%clk 0:02:45.7]} 9. Be3 {[%clk 0:02:51]} 9... Nf6 {[%clk
0:02:42.5]} 10. Bd3 {[%clk 0:02:49.3]} 10... O-O {[%clk 0:02:40.7]} 11. O-O
{[%clk 0:02:49.2]} 11... Nd7 {[%clk 0:02:29.2]} 12. Re1 {[%clk 0:02:47.8]} 12...
Nc5 {[%clk 0:02:22.6]} 13. Bf1 {[%clk 0:02:42.9]} 13... Re8 {[%clk 0:01:56.7]}
14. Qc2 {[%clk 0:02:38]} 14... a4 {[%clk 0:01:55]} 15. Rad1 {[%clk 0:02:36.8]}
15... Qc8 {[%clk 0:01:49.8]} 16. Bxc5 {[%clk 0:02:28.4]} 16... dxc5 {[%clk
0:01:47.7]} 17. Nxa4 {[%clk 0:02:26.2]} 17... Nd4 {[%clk 0:01:32.7]} 18. Nxd4
{[%clk 0:02:24.2]} 18... Bxd4 {[%clk 0:01:33]} 19. b3 {[%clk 0:02:17.7]} 19...
Rxa4 {[%clk 0:01:02.5]} 20. bxa4 {[%clk 0:02:15.8]} 20... b6 {[%clk 0:01:03.3]}
21. Kh2 {[%clk 0:02:01.5]} 21... Bd7 {[%clk 0:00:56.6]} 22. f4 {[%clk
0:01:51.4]} 22... Qa8 {[%clk 0:00:53.8]} 23. Qe2 {[%clk 0:01:32.1]} 23... Bxa4
{[%clk 0:00:50.1]} 24. Rd3 {[%clk 0:01:31.7]} 24... Bc6 {[%clk 0:00:42.9]} 25.
e5 {[%clk 0:01:26.6]} 25... f6 {[%clk 0:00:39.7]} 26. Rxd4 {[%clk 0:01:10.8]}
26... cxd4 {[%clk 0:00:39.5]} 27. Qd3 {[%clk 0:01:09.9]} 27... fxe5 {[%clk
0:00:35.4]} 28. fxe5 {[%clk 0:01:08.7]} 28... Qd8 {[%clk 0:00:35.9]} 29. e6
{[%clk 0:00:52.7]} 29... Qd6+ {[%clk 0:00:35.1]} 30. Kg1 {[%clk 0:00:51.7]}
30... Bb7 {[%clk 0:00:30.1]} 31. e7 {[%clk 0:00:48.2]} 31... c5 {[%clk
0:00:28.5]} 32. Qe2 {[%clk 0:00:46.2]} 32... Kf7 {[%clk 0:00:23.6]} 33. Qf2+
{[%clk 0:00:42]} 33... Qf6 {[%clk 0:00:23.6]} 34. Qb2 {[%clk 0:00:39]} 34...
Rxe7 {[%clk 0:00:23.6]} 35. Rxe7+ {[%clk 0:00:36.4]} 35... Kxe7 {[%clk
0:00:24.5]} 36. Bd3 {[%clk 0:00:35.7]} 36... Qe6 {[%clk 0:00:21.2]} 37. a4
{[%clk 0:00:33.5]} 37... Qe3+ {[%clk 0:00:20.2]} 38. Kh2 {[%clk 0:00:30.5]}
38... Qxd3 {[%clk 0:00:20.3]} 39. Qxb6 {[%clk 0:00:31.1]} 39... Qe4 {[%clk
0:00:19.2]} 40. Qxc5+ {[%clk 0:00:30.7]} 40... Kf6 {[%clk 0:00:18.5]} 41. Qd6+
{[%clk 0:00:30.1]} 41... Kg7 {[%clk 0:00:18.7]} 42. Qc7+ {[%clk 0:00:24.3]}
42... Kh6 {[%clk 0:00:18.5]} 43. Qg3 {[%clk 0:00:22.5]} 43... d3 {[%clk
0:00:18.5]} 44. h4 {[%clk 0:00:21.7]} 44... Qxg2+ {[%clk 0:00:14.7]} 45. Qxg2
{[%clk 0:00:21.6]} 45... Bxg2 {[%clk 0:00:15.6]} 46. Kxg2 {[%clk 0:00:21.7]}
46... d2 {[%clk 0:00:16.2]} 0-1

[Event "Early-Titled-Tuesday-Blitz-July-09-2024"]
[Site "Chess.com"]
[Date "2024.07.09"]
[Round "10"]
[White "Lady_Nika"]
[Black "michaelskie11"]
[Result "0-1"]
[WhiteElo "2502"]
[BlackElo "2408"]
[TimeControl "180+1"]
[EndTime "9:57:08 PDT"]
[Termination "michaelskie11 won by resignation"]

1. e4 {[%clk 0:03:00.9]} 1... e6 {[%clk 0:02:59.3]} 2. d4 {[%clk 0:03:00.8]}
2... d5 {[%clk 0:02:58.9]} 3. e5 {[%clk 0:03:01]} 3... c5 {[%clk 0:02:58.9]} 4.
c3 {[%clk 0:03:01.2]} 4... Nc6 {[%clk 0:02:59.7]} 5. Nf3 {[%clk 0:03:01.4]} 5...
Qb6 {[%clk 0:03:00.4]} 6. Bd3 {[%clk 0:03:01.6]} 6... Bd7 {[%clk 0:03:00.8]} 7.
Bc2 {[%clk 0:02:57.9]} 7... cxd4 {[%clk 0:03:00.3]} 8. cxd4 {[%clk 0:02:57.6]}
8... Nb4 {[%clk 0:03:01]} 9. Nc3 {[%clk 0:02:36.1]} 9... Nxc2+ {[%clk
0:02:59.4]} 10. Qxc2 {[%clk 0:02:36.2]} 10... Rc8 {[%clk 0:03:00.3]} 11. O-O
{[%clk 0:02:35.3]} 11... Bb4 {[%clk 0:02:59.8]} 12. Bd2 {[%clk 0:02:31.5]} 12...
Ne7 {[%clk 0:02:58.4]} 13. Rfb1 {[%clk 0:02:25.6]} 13... Nf5 {[%clk 0:02:56.7]}
14. Qd3 {[%clk 0:02:22.8]} 14... O-O {[%clk 0:02:51.9]} 15. g4 {[%clk
0:02:22.2]} 15... Ne7 {[%clk 0:02:47.5]} 16. a3 {[%clk 0:02:18.1]} 16... Bxc3
{[%clk 0:02:47.6]} 17. bxc3 {[%clk 0:02:18.3]} 17... Qc7 {[%clk 0:02:44.1]} 18.
Bg5 {[%clk 0:02:12.8]} 18... Nc6 {[%clk 0:02:34]} 19. Bd2 {[%clk 0:02:04.8]}
19... Na5 {[%clk 0:02:33.8]} 20. Ng5 {[%clk 0:02:05]} 20... g6 {[%clk
0:02:33.5]} 21. Qh3 {[%clk 0:02:05.1]} 21... h5 {[%clk 0:02:24.7]} 22. gxh5
{[%clk 0:02:05.1]} 22... Kg7 {[%clk 0:02:06.2]} 23. hxg6 {[%clk 0:01:53.9]}
23... Rh8 {[%clk 0:01:58.7]} 24. Nh7 {[%clk 0:01:51.7]} 24... fxg6 {[%clk
0:01:55.9]} 25. Qh6+ {[%clk 0:01:51.5]} 25... Kf7 {[%clk 0:01:52.2]} 26. Qxg6+
{[%clk 0:01:51.8]} 26... Kxg6 {[%clk 0:01:51.7]} 27. Ng5 {[%clk 0:01:37.8]}
27... Nb3 {[%clk 0:01:48.7]} 28. Rxb3 {[%clk 0:01:36.5]} 28... Rcg8 {[%clk
0:01:47.5]} 29. Kh1 {[%clk 0:01:22.8]} 29... Kf5 {[%clk 0:01:40.1]} 30. c4
{[%clk 0:01:17.4]} 30... Rxg5 {[%clk 0:00:52.5]} 31. Rf3+ {[%clk 0:01:04.5]}
31... Ke4 {[%clk 0:00:49.8]} 32. Re3+ {[%clk 0:00:54.8]} 32... Kxd4 {[%clk
0:00:47.5]} 33. Rd1 {[%clk 0:00:29.1]} 33... Ba4 {[%clk 0:00:35.1]} 34. Bc3+
{[%clk 0:00:24.4]} 34... Kc5 {[%clk 0:00:34.6]} 35. Bd4+ {[%clk 0:00:22.5]}
35... Kc6 {[%clk 0:00:34.4]} 36. Rc1 {[%clk 0:00:15.8]} 36... Qh7 {[%clk
0:00:30.4]} 37. h3 {[%clk 0:00:11.2]} 37... Rh5 {[%clk 0:00:28.1]} 38. cxd5+
{[%clk 0:00:10.7]} 38... Kxd5 {[%clk 0:00:28.2]} 39. Kg2 {[%clk 0:00:02.7]}
39... Qg6+ {[%clk 0:00:26.7]} 40. Kf1 {[%clk 0:00:02.7]} 40... Bb5+ {[%clk
0:00:25.8]} 41. Ke1 {[%clk 0:00:02.6]} 41... Qg1+ {[%clk 0:00:24.7]} 42. Kd2
{[%clk 0:00:03]} 42... Qxf2+ {[%clk 0:00:25.2]} 43. Kc3 {[%clk 0:00:03.1]} 43...
Rc8+ {[%clk 0:00:24.7]} 44. Kb4 {[%clk 0:00:03.5]} 44... Rxc1 {[%clk 0:00:21.3]}
0-1

[Event "Early-Titled-Tuesday-Blitz-July-09-2024"]
[Site "Chess.com"]
[Date "2024.07.09"]
[Round "10"]
[White "Rakhmanov_Aleksandr"]
[Black "Sadykov_Ramil"]
[Result "1-0"]
[WhiteElo "2852"]
[BlackElo "2630"]
[TimeControl "180+1"]
[EndTime "9:57:09 PDT"]
[Termination "Rakhmanov_Aleksandr won on time"]

1. d4 {[%clk 0:03:00.9]} 1... d5 {[%clk 0:02:59.6]} 2. c4 {[%clk 0:03:00.6]}
2... e6 {[%clk 0:03:00]} 3. Nc3 {[%clk 0:02:58.8]} 3... Be7 {[%clk 0:03:00.2]}
4. Nf3 {[%clk 0:02:57.9]} 4... Nf6 {[%clk 0:03:00]} 5. Bf4 {[%clk 0:02:58.1]}
5... O-O {[%clk 0:02:59.6]} 6. e3 {[%clk 0:02:58.4]} 6... a6 {[%clk 0:03:00.1]}
7. cxd5 {[%clk 0:02:57.9]} 7... Nxd5 {[%clk 0:02:58.3]} 8. Nxd5 {[%clk
0:02:58.4]} 8... exd5 {[%clk 0:02:52.1]} 9. Bd3 {[%clk 0:02:55.2]} 9... Nd7
{[%clk 0:02:30.8]} 10. Qc2 {[%clk 0:02:46.3]} 10... Bb4+ {[%clk 0:02:07.9]} 11.
Kf1 {[%clk 0:02:36.4]} 11... c5 {[%clk 0:02:00.8]} 12. a3 {[%clk 0:02:26.4]}
12... Ba5 {[%clk 0:01:53.1]} 13. dxc5 {[%clk 0:01:58.6]} 13... Nf6 {[%clk
0:01:49]} 14. h3 {[%clk 0:01:45.3]} 14... Bc7 {[%clk 0:01:43.4]} 15. Bxc7 {[%clk
0:01:45]} 15... Qxc7 {[%clk 0:01:44.3]} 16. b4 {[%clk 0:01:42.6]} 16... a5
{[%clk 0:01:19.4]} 17. b5 {[%clk 0:01:41.2]} 17... Ne4 {[%clk 0:01:18.2]} 18.
Rc1 {[%clk 0:01:18.2]} 18... Bd7 {[%clk 0:01:13]} 19. a4 {[%clk 0:01:15.3]}
19... Rac8 {[%clk 0:01:12.4]} 20. Bxe4 {[%clk 0:01:14]} 20... dxe4 {[%clk
0:01:13.3]} 21. Qxe4 {[%clk 0:01:12.5]} 21... Rfe8 {[%clk 0:00:40.6]} 22. Qc2
{[%clk 0:01:05.5]} 22... Be6 {[%clk 0:00:37.4]} 23. Ke2 {[%clk 0:00:57.2]} 23...
Bd5 {[%clk 0:00:36.9]} 24. Rhd1 {[%clk 0:00:53.8]} 24... Bxf3+ {[%clk
0:00:31.8]} 25. Kxf3 {[%clk 0:00:33.8]} 25... Re5 {[%clk 0:00:27.4]} 26. c6
{[%clk 0:00:31.7]} 26... Ree8 {[%clk 0:00:16.6]} 27. Rd7 {[%clk 0:00:10.7]}
27... Qe5 {[%clk 0:00:13.6]} 28. Rxb7 {[%clk 0:00:07.2]} 28... Qh5+ {[%clk
0:00:13.5]} 29. Kg3 {[%clk 0:00:06.6]} 29... Qe5+ {[%clk 0:00:13]} 30. Kf3
{[%clk 0:00:02]} 30... Qh5+ {[%clk 0:00:13.5]} 31. Kg3 {[%clk 0:00:02.6]} 31...
Qe5+ {[%clk 0:00:13.8]} 32. f4 {[%clk 0:00:03.3]} 32... Qxe3+ {[%clk 0:00:13.8]}
33. Kh2 {[%clk 0:00:04]} 33... Qxf4+ {[%clk 0:00:13.9]} 34. Kh1 {[%clk
0:00:04.7]} 34... h5 {[%clk 0:00:03.8]} 35. Rg1 {[%clk 0:00:04.2]} 35... Re3
{[%clk 0:00:02.7]} 36. Rd1 {[%clk 0:00:01.8]} 36... g6 {[%clk 0:00:01.2]} 37. c7
{[%clk 0:00:02.1]} 1-0

[Event "Early-Titled-Tuesday-Blitz-July-09-2024"]
[Site "Chess.com"]
[Date "2024.07.09"]
[Round "10"]
[White "FerAsensio2024"]
[Black "Hirna2005"]
[Result "0-1"]
[WhiteElo "2505"]
[BlackElo "2425"]
[TimeControl "180+1"]
[EndTime "9:57:13 PDT"]
[Termination "Hirna2005 won by checkmate"]

1. d4 {[%clk 0:03:00.9]} 1... g6 {[%clk 0:03:00.6]} 2. Nc3 {[%clk 0:02:59.6]}
2... Bg7 {[%clk 0:03:01.3]} 3. e4 {[%clk 0:03:00.1]} 3... d6 {[%clk 0:03:02]} 4.
Be3 {[%clk 0:02:58.4]} 4... a6 {[%clk 0:03:02.1]} 5. Qd2 {[%clk 0:02:54.6]} 5...
b5 {[%clk 0:03:02.2]} 6. a3 {[%clk 0:02:54]} 6... Nd7 {[%clk 0:03:02.1]} 7. f4
{[%clk 0:02:52.8]} 7... Bb7 {[%clk 0:03:02.1]} 8. Nf3 {[%clk 0:02:51.1]} 8...
Rc8 {[%clk 0:03:01.2]} 9. Rd1 {[%clk 0:02:47.6]} 9... c5 {[%clk 0:02:58.8]} 10.
Be2 {[%clk 0:02:16.2]} 10... Ngf6 {[%clk 0:02:58.2]} 11. e5 {[%clk 0:02:09.1]}
11... Ng4 {[%clk 0:02:44.4]} 12. exd6 {[%clk 0:01:48.7]} 12... O-O {[%clk
0:02:29.3]} 13. dxc5 {[%clk 0:01:14.6]} 13... Nxc5 {[%clk 0:02:18.5]} 14. Bxc5
{[%clk 0:01:06.6]} 14... Rxc5 {[%clk 0:02:17.6]} 15. h3 {[%clk 0:00:58]} 15...
Nf6 {[%clk 0:02:01.1]} 16. Ne5 {[%clk 0:00:45.7]} 16... Bxg2 {[%clk 0:01:44.5]}
17. Rh2 {[%clk 0:00:40.3]} 17... Ba8 {[%clk 0:01:34.3]} 18. b4 {[%clk 0:00:40]}
18... Rxc3 {[%clk 0:01:20.9]} 19. Qxc3 {[%clk 0:00:40.9]} 19... exd6 {[%clk
0:01:21.2]} 20. Qd3 {[%clk 0:00:20.2]} 20... Ne4 {[%clk 0:01:15.2]} 21. Bf3
{[%clk 0:00:16]} 21... Qh4+ {[%clk 0:01:12.1]} 22. Kf1 {[%clk 0:00:10]} 22...
dxe5 {[%clk 0:01:03.5]} 23. Bxe4 {[%clk 0:00:06.7]} 23... Qxf4+ {[%clk
0:01:03.2]} 24. Qf3 {[%clk 0:00:07.1]} 24... Qxh2 {[%clk 0:00:58.8]} 25. Bxa8
{[%clk 0:00:06.3]} 25... Qxc2 {[%clk 0:00:53.3]} 26. Rd7 {[%clk 0:00:05.6]}
26... Qc1+ {[%clk 0:00:45.1]} 27. Kg2 {[%clk 0:00:04.2]} 27... Qg5+ {[%clk
0:00:41.4]} 28. Kh1 {[%clk 0:00:03.7]} 28... f5 {[%clk 0:00:34.4]} 29. Bd5+
{[%clk 0:00:02.4]} 29... Kh8 {[%clk 0:00:34.5]} 30. Be6 {[%clk 0:00:01.7]} 30...
e4 {[%clk 0:00:31.6]} 31. Qb3 {[%clk 0:00:02.3]} 31... Qc1+ {[%clk 0:00:27.4]}
32. Rd1 {[%clk 0:00:02.2]} 32... Qc7 {[%clk 0:00:25.5]} 33. Bd5 {[%clk 0:00:02]}
33... Rd8 {[%clk 0:00:22.3]} 34. Be6 {[%clk 0:00:02]} 34... Re8 {[%clk
0:00:18.5]} 35. Rd7 {[%clk 0:00:01.9]} 35... Qc1+ {[%clk 0:00:17.4]} 36. Rd1
{[%clk 0:00:02.6]} 36... Qf4 {[%clk 0:00:15.8]} 37. Bf7 {[%clk 0:00:03.1]} 37...
Rf8 {[%clk 0:00:15.3]} 38. Kg2 {[%clk 0:00:03.6]} 38... Qg5+ {[%clk 0:00:14.8]}
39. Kh1 {[%clk 0:00:03.7]} 39... f4 {[%clk 0:00:14.9]} 40. Bd5 {[%clk
0:00:03.1]} 40... Qe5 {[%clk 0:00:12.3]} 41. Re1 {[%clk 0:00:02.7]} 41... e3
{[%clk 0:00:12]} 42. Bf3 {[%clk 0:00:02.8]} 42... Qg5 {[%clk 0:00:11.7]} 43. Rg1
{[%clk 0:00:02.5]} 43... Qh4 {[%clk 0:00:10.8]} 44. Qd3 {[%clk 0:00:02.3]} 44...
Qxh3# {[%clk 0:00:09.7]} 0-1

[Event "Early-Titled-Tuesday-Blitz-July-09-2024"]
[Site "Chess.com"]
[Date "2024.07.09"]
[Round "10"]
[White "kacperkarwowski"]
[Black "LikeWater"]
[Result "1-0"]
[WhiteElo "2559"]
[BlackElo "2677"]
[TimeControl "180+1"]
[EndTime "9:57:14 PDT"]
[Termination "kacperkarwowski won by checkmate"]

1. f4 {[%clk 0:03:00.9]} 1... Nf6 {[%clk 0:03:00.9]} 2. Nf3 {[%clk 0:02:59.9]}
2... d6 {[%clk 0:02:57.8]} 3. b3 {[%clk 0:02:58.9]} 3... e5 {[%clk 0:02:57.6]}
4. fxe5 {[%clk 0:02:58.9]} 4... dxe5 {[%clk 0:02:58.5]} 5. Bb2 {[%clk
0:02:48.5]} 5... e4 {[%clk 0:02:55.7]} 6. Ne5 {[%clk 0:02:44.4]} 6... Bd6 {[%clk
0:02:43.4]} 7. d4 {[%clk 0:02:44.1]} 7... Bxe5 {[%clk 0:02:31.5]} 8. dxe5 {[%clk
0:02:45]} 8... Qxd1+ {[%clk 0:02:31.8]} 9. Kxd1 {[%clk 0:02:45.9]} 9... Ng4
{[%clk 0:02:32.4]} 10. Ke1 {[%clk 0:02:46.5]} 10... Nc6 {[%clk 0:02:30.4]} 11.
Nc3 {[%clk 0:02:43.2]} 11... Bf5 {[%clk 0:02:24.9]} 12. Nb5 {[%clk 0:02:42.3]}
12... O-O-O {[%clk 0:02:24]} 13. h3 {[%clk 0:02:39.1]} 13... Ne3 {[%clk
0:02:15.6]} 14. Kf2 {[%clk 0:02:38.7]} 14... Nxc2 {[%clk 0:02:12.7]} 15. Rc1
{[%clk 0:02:39.3]} 15... a6 {[%clk 0:01:59.2]} 16. Rxc2 {[%clk 0:02:36.5]} 16...
e3+ {[%clk 0:01:58.7]} 17. Kxe3 {[%clk 0:02:36.8]} 17... Bxc2 {[%clk 0:01:59.5]}
18. Na3 {[%clk 0:02:35.5]} 18... Bg6 {[%clk 0:01:56.5]} 19. g4 {[%clk
0:02:32.9]} 19... Rhe8 {[%clk 0:01:57.1]} 20. Nc4 {[%clk 0:02:30.6]} 20... b5
{[%clk 0:01:57.2]} 21. Bg2 {[%clk 0:02:31.2]} 21... Nb4 {[%clk 0:01:52.4]} 22.
Na5 {[%clk 0:02:26.9]} 22... Nc2+ {[%clk 0:01:50.1]} 23. Kf2 {[%clk 0:02:25.5]}
23... Nd4 {[%clk 0:01:47.1]} 24. Bxd4 {[%clk 0:02:16.8]} 24... Rxd4 {[%clk
0:01:48]} 25. Bb7+ {[%clk 0:02:17]} 25... Kd7 {[%clk 0:01:27.8]} 26. Bc6+ {[%clk
0:02:16.9]} 26... Ke7 {[%clk 0:01:28.4]} 27. Bxe8 {[%clk 0:02:17.6]} 27... Kxe8
{[%clk 0:01:29.3]} 28. Rc1 {[%clk 0:02:16.5]} 28... Kd7 {[%clk 0:01:27.2]} 29.
Nb7 {[%clk 0:02:16.2]} 29... Rd2 {[%clk 0:01:19.3]} 30. Nc5+ {[%clk 0:02:16.2]}
30... Kd8 {[%clk 0:01:15.3]} 31. Nxa6 {[%clk 0:02:16.4]} 31... Rxa2 {[%clk
0:01:14.1]} 32. Nxc7 {[%clk 0:02:06.7]} 32... Bd3 {[%clk 0:01:14.7]} 33. Ke3
{[%clk 0:01:58.1]} 33... Bxe2 {[%clk 0:01:13.8]} 34. e6 {[%clk 0:01:58.6]} 34...
Ke7 {[%clk 0:01:08.7]} 35. Nd5+ {[%clk 0:01:53.3]} 35... Kxe6 {[%clk 0:01:01.3]}
36. Nf4+ {[%clk 0:01:53.2]} 36... Kd6 {[%clk 0:01:00.6]} 37. Nxe2 {[%clk
0:01:53.8]} 37... Rb2 {[%clk 0:00:56]} 38. Rc3 {[%clk 0:01:51.3]} 38... Rb1
{[%clk 0:00:52.8]} 39. Nd4 {[%clk 0:01:48.3]} 39... b4 {[%clk 0:00:52.9]} 40.
Rd3 {[%clk 0:01:47.4]} 40... Ke5 {[%clk 0:00:50.6]} 41. Nc6+ {[%clk 0:01:47]}
41... Kf6 {[%clk 0:00:50.6]} 42. Nxb4 {[%clk 0:01:47.9]} 42... Rh1 {[%clk
0:00:50.2]} 43. Kf2 {[%clk 0:01:46]} 43... Kg5 {[%clk 0:00:49.6]} 44. Kg2 {[%clk
0:01:42.3]} 44... Rb1 {[%clk 0:00:48.6]} 45. Nd5 {[%clk 0:01:40.9]} 45... Kh4
{[%clk 0:00:47.7]} 46. Rf3 {[%clk 0:01:06]} 46... Rb2+ {[%clk 0:00:31.1]} 47.
Kf1 {[%clk 0:01:05.9]} 47... f6 {[%clk 0:00:27.2]} 48. Ne7 {[%clk 0:01:02.5]}
48... g6 {[%clk 0:00:25.2]} 49. Ng8 {[%clk 0:01:00.2]} 49... f5 {[%clk
0:00:24.7]} 50. gxf5 {[%clk 0:01:00.8]} 50... gxf5 {[%clk 0:00:25.6]} 51. Ne7
{[%clk 0:00:58.2]} 51... f4 {[%clk 0:00:23.2]} 52. Nd5 {[%clk 0:00:54.9]} 52...
Rb1+ {[%clk 0:00:20.4]} 53. Kg2 {[%clk 0:00:52.8]} 53... Rb2+ {[%clk 0:00:21.3]}
54. Rf2 {[%clk 0:00:52.5]} 54... Rxb3 {[%clk 0:00:21.6]} 55. Rxf4+ {[%clk
0:00:50.9]} 55... Kg5 {[%clk 0:00:21.2]} 56. Rf3 {[%clk 0:00:51.1]} 56... Rb2+
{[%clk 0:00:18.5]} 57. Kg3 {[%clk 0:00:51.4]} 57... h6 {[%clk 0:00:18.5]} 58.
Ne7 {[%clk 0:00:49.8]} 58... Rb5 {[%clk 0:00:16.4]} 59. h4+ {[%clk 0:00:47.7]}
59... Kh5 {[%clk 0:00:16.5]} 60. Rf5+ {[%clk 0:00:48.3]} 60... Rxf5 {[%clk
0:00:16.5]} 61. Nxf5 {[%clk 0:00:49.2]} 61... Kg6 {[%clk 0:00:17.1]} 62. Kg4
{[%clk 0:00:50]} 62... Kh7 {[%clk 0:00:16.3]} 63. Kh5 {[%clk 0:00:49.6]} 63...
Kh8 {[%clk 0:00:16.5]} 64. Nxh6 {[%clk 0:00:50.5]} 64... Kh7 {[%clk 0:00:16.9]}
65. Nf5 {[%clk 0:00:51.4]} 65... Kh8 {[%clk 0:00:17.1]} 66. Kg5 {[%clk
0:00:52.3]} 66... Kg8 {[%clk 0:00:18]} 67. h5 {[%clk 0:00:53.2]} 67... Kh8
{[%clk 0:00:18.7]} 68. h6 {[%clk 0:00:53.7]} 68... Kg8 {[%clk 0:00:19.6]} 69.
Kg6 {[%clk 0:00:54.5]} 69... Kh8 {[%clk 0:00:20.2]} 70. Nd6 {[%clk 0:00:54.8]}
70... Kg8 {[%clk 0:00:20.2]} 71. h7+ {[%clk 0:00:54.7]} 71... Kf8 {[%clk
0:00:20.5]} 72. h8=Q+ {[%clk 0:00:55.2]} 72... Ke7 {[%clk 0:00:20.8]} 73. Qf6+
{[%clk 0:00:55.6]} 73... Kd7 {[%clk 0:00:20.4]} 74. Nb5 {[%clk 0:00:55.7]} 74...
Ke8 {[%clk 0:00:20.7]} 75. Qf7+ {[%clk 0:00:55.6]} 75... Kd8 {[%clk 0:00:21.1]}
76. Qc7+ {[%clk 0:00:56.5]} 76... Ke8 {[%clk 0:00:21.6]} 77. Nd6+ {[%clk
0:00:57.4]} 77... Kf8 {[%clk 0:00:22.2]} 78. Qd8# {[%clk 0:00:58.3]} 1-0

[Event "Early-Titled-Tuesday-Blitz-July-09-2024"]
[Site "Chess.com"]
[Date "2024.07.09"]
[Round "10"]
[White "ChessFighter_2011"]
[Black "Nitzan_Steinberg"]
[Result "1-0"]
[WhiteElo "2963"]
[BlackElo "2874"]
[TimeControl "180+1"]
[EndTime "9:57:15 PDT"]
[Termination "ChessFighter_2011 won on time"]

1. e4 {[%clk 0:03:00.9]} 1... c5 {[%clk 0:03:00.5]} 2. Nf3 {[%clk 0:02:59.2]}
2... d6 {[%clk 0:03:01.1]} 3. Bb5+ {[%clk 0:02:57.9]} 3... Bd7 {[%clk
0:03:00.7]} 4. c4 {[%clk 0:02:55.8]} 4... Nf6 {[%clk 0:02:58.8]} 5. Nc3 {[%clk
0:02:55.6]} 5... g6 {[%clk 0:02:59.2]} 6. O-O {[%clk 0:02:54.5]} 6... Bg7 {[%clk
0:02:59.3]} 7. d4 {[%clk 0:02:53.9]} 7... cxd4 {[%clk 0:02:58.9]} 8. Nxd4 {[%clk
0:02:54.8]} 8... O-O {[%clk 0:02:59.3]} 9. Bxd7 {[%clk 0:02:45.9]} 9... Qxd7
{[%clk 0:02:55.8]} 10. f3 {[%clk 0:02:42.5]} 10... Nc6 {[%clk 0:02:55.1]} 11.
Be3 {[%clk 0:02:42.3]} 11... a6 {[%clk 0:02:55]} 12. Qe2 {[%clk 0:02:33.8]}
12... Rac8 {[%clk 0:02:35.1]} 13. Rfd1 {[%clk 0:01:24.7]} 13... Ne5 {[%clk
0:02:33.7]} 14. b3 {[%clk 0:01:24.4]} 14... b5 {[%clk 0:02:33.7]} 15. Nd5 {[%clk
0:01:24.5]} 15... Rb8 {[%clk 0:01:36.8]} 16. cxb5 {[%clk 0:01:16.9]} 16... axb5
{[%clk 0:01:26.7]} 17. Rac1 {[%clk 0:01:13.9]} 17... Nxd5 {[%clk 0:00:59.5]} 18.
exd5 {[%clk 0:01:14.8]} 18... Rfc8 {[%clk 0:00:54.9]} 19. f4 {[%clk 0:01:10.9]}
19... Ng4 {[%clk 0:00:49.8]} 20. Nc6 {[%clk 0:01:10]} 20... Ra8 {[%clk
0:00:35.4]} 21. Bb6 {[%clk 0:00:54.6]} 21... Bf8 {[%clk 0:00:34]} 22. Rc2 {[%clk
0:00:39.9]} 22... b4 {[%clk 0:00:20.6]} 23. Rdc1 {[%clk 0:00:37]} 23... Re8
{[%clk 0:00:17.8]} 24. Nxb4 {[%clk 0:00:31.2]} 24... Bh6 {[%clk 0:00:14]} 25. g3
{[%clk 0:00:28.9]} 25... e5 {[%clk 0:00:14.1]} 26. dxe6 {[%clk 0:00:27.1]} 26...
Rxe6 {[%clk 0:00:14.3]} 27. Qf3 {[%clk 0:00:21.7]} 27... Rae8 {[%clk 0:00:14.4]}
28. Nd3 {[%clk 0:00:21.4]} 28... Qb5 {[%clk 0:00:13.7]} 29. Bd4 {[%clk
0:00:17.3]} 29... Ne3 {[%clk 0:00:13.4]} 30. Rd2 {[%clk 0:00:17.2]} 30... Re4
{[%clk 0:00:09.2]} 31. Bxe3 {[%clk 0:00:17.4]} 31... Rxe3 {[%clk 0:00:09.4]} 32.
Qf1 {[%clk 0:00:18.3]} 32... Bg7 {[%clk 0:00:08.8]} 33. Nf2 {[%clk 0:00:18.7]}
33... Qb6 {[%clk 0:00:07.7]} 34. Qc4 {[%clk 0:00:17.6]} 34... h5 {[%clk
0:00:05]} 35. Kg2 {[%clk 0:00:17.8]} 35... h4 {[%clk 0:00:04.9]} 36. Qc6 {[%clk
0:00:18.2]} 36... Qa7 {[%clk 0:00:04.6]} 37. Rcc2 {[%clk 0:00:15.8]} 37... hxg3
{[%clk 0:00:04.4]} 38. hxg3 {[%clk 0:00:16.7]} 38... Qe7 {[%clk 0:00:04.5]} 39.
Qd5 {[%clk 0:00:16.3]} 39... Qd7 {[%clk 0:00:04.3]} 40. a4 {[%clk 0:00:15.7]}
40... Re1 {[%clk 0:00:03.4]} 41. Qxd6 {[%clk 0:00:14.9]} 41... Qf5 {[%clk
0:00:02.6]} 42. Qd5 {[%clk 0:00:14.4]} 42... Qf6 {[%clk 0:00:02.1]} 43. a5
{[%clk 0:00:14.8]} 43... Qa1 {[%clk 0:00:02.3]} 44. Rd1 {[%clk 0:00:14.8]} 1-0